bitfinex/quotes_ETHUSD_20240819
["timestamp","ask_amount","ask_price","bid_price","bid_amount"]
[1724077505103,3.87612,2579.9,2579.3,3.87697]
[1724077505252,4.67186469,2579.9,2579.3,3.87697]
[1724077505897,3.87627,2579.8,2579.1,6.952649]
[1724077506187,3.87627,2579.8,2579.2,4.5723529]
[1724077506395,0.19710533,2579.7,2579.1,3.8773]
[1724077506559,0.99285002,2579.7,2579.1,3.8773]
[1724077506905,3.96358939,2580.0,2579.3,3.87699]
[1724077506906,0.79574469,2579.9,2579.3,3.87699]
[1724077507201,0.99279633,2579.9,2579.3,3.87699]
[1724077507495,0.79574469,2579.8,2579.3,3.87699]
[1724077507701,0.99279633,2579.8,2579.3,3.87699]
[1724077507904,0.79574469,2579.9,2579.3,3.87693]
[1724077508213,7.04382469,2580.0,2579.4,0.426466]
[1724077508492,0.99283517,2579.9,2579.7,3.87633]
[1724077508801,2.39159828,2580.5,2579.7,3.87633]
[1724077508802,0.79574469,2580.3,2579.8,3.87624]
[1724077508949,0.99279118,2580.3,2579.9,4.510724]
[1724077509151,0.79574469,2580.3,2579.9,4.510724]
[1724077509345,0.99282431,2580.3,2579.9,0.634634]
[1724077509662,0.99282431,2580.3,2579.6,3.87649]
[1724077509663,0.79574469,2580.3,2579.6,3.87645]
[1724077509861,4.86831723,2580.3,2579.7,3.0]
[1724077510062,2.2943,2580.0,2579.4,3.0]
[1724077510268,0.99296368,2579.9,2579.5,3.87662]
[1724077510449,0.99296368,2579.9,2579.4,7.75354]
[1724077510655,0.79574469,2579.9,2579.4,4.603209]
[1724077510867,0.99295643,2579.9,2579.3,3.0]
[1724077511101,0.79574469,2579.8,2579.2,3.87706]
[1724077511401,0.79574469,2579.7,2579.0,6.87736]
[1724077511601,0.79574469,2579.5,2578.8,3.87767]
[1724077511766,3.46781704,2579.6,2578.7,2.4405]
[1724077511767,0.79574469,2579.6,2579.2,3.87715]
[1724077511958,0.79574469,2579.6,2579.2,3.87708]
[1724077511959,0.99310235,2579.6,2579.2,3.87708]
[1724077512374,0.99310235,2579.6,2579.3,3.87701]
[1724077512676,0.99310235,2579.6,2579.2,3.87708]
[1724077512992,0.79574469,2579.6,2579.2,3.87708]
[1724077513295,0.79574469,2579.6,2579.2,3.87707]
[1724077513697,0.79574469,2579.6,2579.3,3.87694]
[1724077514381,0.79574469,2579.6,2579.2,4.264777]
[1724077514583,0.79574469,2579.6,2579.0,3.87732]
[1724077514778,0.79574469,2579.6,2579.1,6.8773]
[1724077515092,8.54903469,2579.6,2579.1,3.0]
[1724077515256,2.3294,2579.4,2579.0,3.0]
[1724077515455,2.3294,2579.4,2578.9,3.0]
[1724077515696,3.87702,2579.3,2578.9,3.0]
[1724077515992,3.87718,2579.2,2578.5,3.87813]
[1724077516155,0.70613235,2579.3,2578.6,3.87795]
[1724077516354,0.42202038,2579.2,2578.6,3.87795]
[1724077516591,0.42201522,2579.1,2578.6,3.87795]
[1724077516763,3.87734,2579.1,2578.5,3.87813]
[1724077516978,2.3291,2578.9,2578.3,3.87842]
[1724077517399,2.3291,2578.9,2578.4,3.0]
[1724077518093,4.29955518,2578.8,2578.2,3.87865]
[1724077518256,0.42177518,2578.7,2578.2,3.87865]
[1724077518458,4.498438,2578.8,2578.2,3.87865]
[1724077518682,0.42177097,2578.7,2578.2,3.87865]
[1724077518881,3.87778,2578.8,2578.2,3.87865]
[1724077519162,0.42170816,2578.7,2578.2,3.87865]
[1724077519467,3.87778,2578.8,2578.2,3.87865]
[1724077519796,0.42168039,2578.7,2578.2,3.87865]
[1724077519998,3.87778,2578.8,2578.1,7.28]
[1724077520197,4.29960586,2578.7,2578.1,11.15882]
[1724077520409,0.620688,2578.8,2578.1,11.15882]
[1724077520560,6.20683,2578.9,2578.1,11.15882]
[1724077520792,0.42181316,2578.8,2578.2,3.87866]
[1724077521001,6.20683,2578.9,2578.2,7.75732]
[1724077521193,0.42177407,2578.8,2578.3,3.8785]
[1724077521395,2.3291,2578.9,2578.3,3.8785]
[1724077521594,0.42178084,2578.8,2578.3,3.8785]
[1724077521894,2.3291,2578.9,2578.3,3.8785]
[1724077522310,0.42180391,2578.8,2578.3,3.8785]
[1724077522641,6.20673,2578.9,2578.2,3.8786]
[1724077522793,0.42179036,2578.8,2578.2,3.8786]
[1724077522993,7.2539254,2578.9,2578.2,3.87858]
[1724077523342,0.42179292,2578.8,2578.3,3.87849]
[1724077523644,6.20673,2578.9,2578.2,3.87866]
[1724077523798,0.42178986,2578.8,2578.2,3.87866]
[1724077523998,2.3291,2578.9,2578.3,3.87851]
[1724077524199,2.3291,2578.9,2578.5,3.8782]
[1724077524534,2.3291,2578.9,2578.5,7.75634]
[1724077524849,2.3212,2579.2,2578.7,3.87785]
[1724077525146,2.3212,2579.2,2578.8,3.87769]
[1724077525350,6.19792,2579.5,2578.9,3.8776]
[1724077525643,0.42184149,2579.4,2578.8,3.87776]
[1724077525826,0.42184149,2579.3,2578.7,7.75564]
[1724077526027,0.42184149,2579.3,2578.8,3.87776]
[1724077526236,0.42184149,2579.3,2578.7,3.8778]
[1724077526237,0.80199735,2579.0,2578.7,3.8778]
[1724077526430,0.80199735,2578.9,2578.7,3.8778]
[1724077528948,0.80199735,2578.9,2578.7,7.75565]
[1724077529152,0.80199735,2578.9,2578.7,4.7309284]
[1724077530772,1.20299602,2578.9,2578.4,3.8783]
[1724077531052,0.80270723,2578.5,2578.2,3.87856]
[1724077531259,0.80267168,2578.4,2578.2,3.87856]
[1724077531409,1.00091995,2578.3,2578.2,3.87856]
[1724077531610,0.80267168,2578.4,2578.2,3.87856]
[1724077532026,0.19824914,2578.3,2578.2,3.87856]
[1724077532207,0.80267168,2578.5,2578.2,3.87856]
[1724077532439,0.80267168,2578.5,2578.2,8.532901]
[1724077532644,0.80267168,2578.5,2578.2,3.87856]
[1724077532974,0.80267168,2578.4,2578.1,3.87874]
[1724077533109,0.80267168,2578.4,2578.2,3.87867]
[1724077533306,0.80267168,2578.4,2578.0,4.115885]
[1724077533511,0.80267168,2578.3,2578.1,3.0]
[1724077533708,0.80267168,2578.3,2577.9,6.87905]
[1724077533709,0.80267168,2578.3,2578.0,3.87897]
[1724077533937,0.80267168,2578.3,2578.1,3.0]
[1724077534542,0.80267168,2578.4,2578.1,6.87881]
[1724077535416,0.80267168,2578.3,2578.1,6.87881]
[1724077535726,0.80267168,2578.4,2578.1,6.87881]
[1724077536275,0.80267168,2578.4,2578.1,3.0]
[1724077536480,0.80267168,2578.4,2578.0,9.173667]
[1724077536682,0.80267168,2578.4,2578.1,3.0]
[1724077537189,0.80267168,2578.5,2578.2,6.30995]
[1724077537347,0.80267168,2578.5,2578.2,3.87865]
[1724077537553,0.80267168,2578.6,2578.3,3.87851]
[1724077537754,0.80267168,2578.6,2578.3,5.07596247]
[1724077537985,0.80267168,2578.6,2578.4,3.87835]
[1724077538191,1.20299602,2578.7,2578.3,1.19745247]
[1724077538192,0.80267168,2578.7,2578.3,1.19745247]
[1724077538355,0.80267168,2578.6,2578.4,3.87835]
[1724077538576,1.00088608,2578.6,2578.4,7.75664]
[1724077538752,0.80267168,2578.6,2578.4,7.75664]
[1724077538953,0.80267168,2578.7,2578.6,7.75614]
[1724077539202,0.80267168,2578.8,2578.6,3.87807]
[1724077539352,0.80267168,2578.9,2578.7,3.87792]
[1724077539930,0.80267168,2578.8,2578.7,3.87791]
[1724077540233,0.80267168,2578.9,2578.6,4.3433534]
[1724077540533,1.00090818,2578.8,2578.6,4.3433534]
[1724077540852,0.80267168,2578.8,2578.4,3.87827]
[1724077540991,1.00094992,2578.7,2578.5,3.87819]
[1724077541190,0.80267168,2578.8,2578.6,3.87807]
[1724077542030,0.80267168,2578.8,2578.7,3.87792]
[1724077542234,0.80267168,2578.9,2578.7,3.87792]
[1724077542707,1.00094866,2578.8,2578.5,4.265889]
[1724077543046,0.80267168,2578.9,2578.5,4.265889]
[1724077543390,0.80267168,2578.9,2578.6,3.87807]
[1724077543587,1.00101099,2578.8,2578.6,3.87807]
[1724077543805,0.80267168,2578.9,2578.7,3.87792]
[1724077544337,0.80267168,2578.9,2578.7,3.87791]
[1724077544556,0.80267168,2578.9,2578.8,3.87777]
[1724077544839,1.00099352,2578.9,2578.8,3.87777]
[1724077545134,0.80267168,2578.9,2578.7,3.87791]
[1724077545339,0.80267168,2578.9,2578.8,3.87777]
[1724077545813,0.80267168,2579.0,2578.9,3.87762]
[1724077546136,1.00211017,2579.0,2578.9,3.87762]
[1724077546345,1.00211017,2579.0,2578.9,7.75524]
[1724077546639,0.80376422,2579.2,2579.1,3.87732]
[1724077546841,0.80376422,2579.3,2579.1,3.87732]
[1724077547199,1.00201892,2579.2,2579.0,3.87745]
[1724077547522,0.80376422,2579.2,2579.1,3.87732]
[1724077547723,1.00196039,2579.2,2579.1,3.87732]
[1724077547892,0.80376422,2579.3,2579.1,3.87732]
[1724077548097,0.80376422,2579.3,2579.0,3.87747]
[1724077548339,0.80376422,2579.3,2579.0,7.75486]
[1724077548645,0.19810583,2579.2,2579.0,3.87739]
[1724077548796,0.80376422,2579.3,2579.0,3.87739]
[1724077549145,0.80376422,2579.3,2579.1,3.87731]
[1724077550920,0.80376422,2579.3,2579.0,3.87744]
[1724077551577,0.80376422,2579.3,2578.7,7.28]
[1724077551578,1.41288971,2579.3,2578.7,7.28]
[1724077551745,1.41288971,2579.3,2578.7,11.15789]
[1724077551746,0.80376422,2579.0,2578.7,11.15789]
[1724077551945,0.19816494,2578.9,2578.7,7.28]
[1724077552149,0.80376422,2578.8,2578.7,7.28]
[1724077552326,0.80376422,2578.9,2578.7,7.28]
[1724077552526,0.80376422,2578.9,2578.7,11.15787]
[1724077552885,0.80376422,2578.9,2578.7,7.28]
[1724077553235,1.00193602,2578.8,2578.7,7.28]
[1724077553885,0.80376422,2579.0,2578.7,11.15784]
[1724077554165,0.80376422,2578.9,2578.7,11.15784]
[1724077554764,0.80376422,2578.8,2578.7,11.15784]
[1724077554944,1.0019742,2578.8,2578.7,11.15784]
[1724077555432,0.80376422,2578.9,2578.7,11.15784]
[1724077555633,0.80376422,2578.8,2578.7,11.15784]
[1724077555891,1.20299602,2578.8,2578.5,3.8782]
[1724077556071,0.80370683,2578.7,2578.4,3.87825]
[1724077556267,0.80370683,2578.7,2578.5,6.87822]
[1724077556469,0.80370683,2578.7,2578.5,3.87822]
[1724077556671,0.80370683,2578.6,2578.3,6.87837]
[1724077556871,0.80370683,2578.4,2578.1,3.87871]
[1724077557070,0.80370683,2578.3,2578.0,3.87896]
[1724077557373,0.80370683,2578.2,2578.0,3.87896]
[1724077557935,0.80370683,2578.2,2578.1,3.87882]
[1724077558286,0.80370683,2578.3,2578.1,6.87882]
[1724077559679,1.00233386,2578.2,2578.1,6.87882]
[1724077559988,0.80426182,2578.3,2578.2,3.87867]
[1724077560139,1.20299602,2578.4,2578.3,3.87852]
[1724077560140,0.80426182,2578.4,2578.3,3.87852]
[1724077560448,0.80426182,2578.5,2578.3,5.0618279]
[1724077560648,0.80426182,2578.4,2578.3,3.87852]
[1724077560840,1.0028571,2578.4,2578.3,3.87852]
[1724077561035,1.4015913,2578.4,2578.2,3.87864]
[1724077561236,1.00283008,2578.3,2578.1,6.87881]
[1724077561577,0.8042348,2578.3,2578.1,6.87881]
[1724077562249,0.8042348,2578.2,2578.1,3.0]
[1724077562463,1.00290882,2578.2,2577.8,7.28]
[1724077562663,3.2728348,2578.0,2577.8,3.87919]
[1724077563014,3.2728348,2578.0,2577.9,3.87912]
[1724077563310,3.87022411,2578.0,2577.9,3.87912]
[1724077563764,1.00222382,2578.0,2577.9,3.87912]
[1724077564554,1.00211411,2578.0,2577.9,3.87912]
[1724077565155,1.00211484,2578.0,2577.9,3.87912]
[1724077565552,1.00211484,2578.0,2577.9,8.534078]
[1724077565756,1.20299602,2578.2,2578.0,3.87897]
[1724077566054,0.80322279,2578.1,2578.0,7.75794]
[1724077566253,1.6039947,2578.3,2578.2,3.87867]
[1724077566254,0.80322279,2578.3,2578.2,3.87867]
[1724077566457,1.20299602,2578.4,2578.3,3.87852]
[1724077566458,0.80322279,2578.4,2578.3,3.87852]
[1724077566658,0.19831889,2578.4,2578.3,3.87852]
[1724077567099,0.19835049,2578.4,2578.3,7.75704]
[1724077567299,1.20299602,2578.6,2578.3,7.75704]
[1724077567300,0.80322279,2578.6,2578.4,3.87837]
[1724077568082,0.80322279,2578.6,2578.5,3.87822]
[1724077568322,0.80322279,2578.6,2578.4,3.87835]
[1724077568657,0.80322279,2578.5,2578.4,3.87835]
[1724077568984,1.00155077,2578.5,2578.4,3.87835]
[1724077569300,0.80322279,2578.6,2578.4,3.87835]
[1724077569502,0.80322279,2578.6,2578.3,4.654204]
[1724077569711,0.19829517,2578.5,2578.3,4.654204]
[1724077569874,0.80322279,2578.6,2578.3,4.654204]
[1724077570077,0.80322279,2578.6,2578.4,3.87833]
[1724077570621,0.80322279,2578.7,2578.5,3.87822]
[1724077570935,0.80322279,2578.8,2578.6,3.87807]
[1724077571103,0.80322279,2578.8,2578.7,3.87792]
[1724077571258,1.00140477,2578.8,2578.7,3.87792]
[1724077571463,0.19818198,2578.8,2578.7,3.87792]
[1724077571659,0.80307279,2578.8,2578.7,3.87792]
[1724077571899,0.80307279,2578.8,2578.7,7.75584]
[1724077572204,0.80307279,2578.9,2578.8,3.87777]
[1724077572559,1.20299602,2579.0,2578.8,3.87777]
[1724077572909,1.20299602,2579.0,2578.9,3.87762]
[1724077573402,1.40118313,2579.0,2578.9,3.87762]
[1724077573610,1.00166221,2579.0,2578.9,8.6083374]
[1724077573770,2.00834603,2579.3,2579.2,7.75434]
[1724077573771,0.8034751,2579.3,2579.2,7.75434]
[1724077573983,0.8034751,2579.4,2579.3,3.87702]
[1724077574394,0.19810041,2579.4,2579.3,7.75404]
[1724077574591,0.8034751,2579.6,2579.5,3.87672]
[1724077575558,0.8034751,2579.7,2579.6,3.87657]
[1724077575791,1.00141616,2579.7,2579.6,3.87657]
[1724077576162,1.00141616,2579.7,2579.6,8.528469]
[1724077576501,4.0579947,2580.0,2579.9,3.87611]
[1724077576502,0.8034751,2580.0,2579.9,3.87611]
[1724077576702,0.8034751,2580.1,2579.9,3.87611]
[1724077576857,0.8034751,2580.1,2579.8,3.87612]
[1724077577062,0.8034751,2580.3,2579.9,3.0]
[1724077577324,0.8034751,2580.5,2580.1,2.2684]
[1724077577488,0.8034751,2580.7,2580.4,3.87536]
[1724077577689,0.8034751,2580.7,2580.2,4.67543]
[1724077577690,0.8034751,2580.8,2580.6,3.87506]
[1724077578014,0.8034751,2580.9,2580.8,3.87476]
[1724077578182,0.8034751,2581.5,2581.3,3.87398]
[1724077578365,3.1087751,2581.6,2581.3,3.87389]
[1724077578707,0.8034751,2581.7,2581.3,3.87389]
[1724077579294,0.8034751,2581.7,2581.3,7.74777]
[1724077579470,1.68441299,2581.8,2581.3,7.74777]
[1724077579471,1.28489207,2581.8,2581.3,7.74777]
[1724077579666,0.48141697,2581.8,2581.3,3.87388]
[1724077580414,2.3053,2582.0,2581.5,3.8737]
[1724077580906,3.1087751,2582.0,2581.3,3.87394]
[1724077581138,0.31087751,2581.9,2581.3,3.87394]
[1724077581291,0.31087751,2581.9,2581.2,3.87406]
[1724077581645,0.31087751,2581.9,2581.1,3.87425]
[1724077581788,0.31087751,2581.9,2581.2,3.0]
[1724077582189,4.18399751,2581.9,2581.2,3.0]
[1724077582441,4.90953275,2581.8,2581.2,3.0]
[1724077582644,4.90953275,2581.8,2580.9,3.87453]
[1724077582645,2.4425,2581.7,2581.0,3.0]
[1724077582807,2.4425,2581.7,2580.7,3.87485]
[1724077582808,3.87381,2581.5,2580.7,3.87485]
[1724077583010,3.87366,2581.6,2580.8,3.0]
[1724077583011,2.4425,2581.4,2580.8,3.0]
[1724077583192,2.4425,2581.4,2580.9,3.87461]
[1724077583399,3.074116,2581.4,2580.8,3.0]
[1724077583595,3.87415,2581.3,2580.6,7.28]
[1724077583904,3.8742,2581.2,2580.6,7.28]
[1724077584145,2.4425,2581.4,2580.6,7.28]
[1724077584146,6.31648,2581.4,2580.6,7.28]
[1724077584306,7.02847551,2581.4,2580.6,7.28]
[1724077584493,7.02847551,2581.4,2580.7,3.87482]
[1724077585405,3.87401,2581.3,2580.6,7.28]
[1724077585739,3.87431,2581.1,2580.6,7.28]
[1724077585935,3.87408,2581.3,2580.6,11.15497]
[1724077586248,4.57693755,2581.3,2580.6,11.15497]
[1724077586545,0.70285755,2581.3,2580.7,3.8749]
[1724077586750,2.4425,2581.4,2580.7,3.87482]
[1724077587178,6.31637,2581.4,2580.7,3.87482]
[1724077587436,2.4425,2581.4,2580.7,3.87485]
[1724077587654,2.4425,2581.4,2580.9,3.87451]
[1724077587988,2.4024,2581.7,2581.2,3.87408]
[1724077588850,2.4024,2581.7,2580.9,7.28]
[1724077588994,3.87364,2581.6,2580.9,7.28]
[1724077589310,3.87384,2581.5,2580.9,7.28]
[1724077589513,3.87394,2581.4,2580.9,7.28]
[1724077589841,2.4135,2581.5,2580.9,7.28]
[1724077589842,3.87414,2581.3,2580.9,7.28]
[1724077590038,6.28726,2581.5,2580.9,7.28]
[1724077590341,0.628726,2581.4,2580.9,7.28]
[1724077590542,6.28721,2581.5,2580.9,7.28]
[1724077590695,3.87389,2581.4,2580.9,7.28]
[1724077590895,2.4135,2581.5,2580.9,7.28]
[1724077591558,2.4135,2581.5,2580.9,11.15451]
[1724077591996,2.4135,2581.5,2581.0,3.87446]
[1724077592195,2.4441,2581.7,2581.0,4.989906]
[1724077592398,2.4441,2581.7,2581.1,3.87424]
[1724077592592,2.4441,2581.7,2581.2,3.87407]
[1724077593255,2.4441,2581.7,2581.3,3.87394]
[1724077593399,6.31716,2582.0,2581.4,3.87385]
[1724077593746,3.87262,2582.3,2581.7,3.8734]
[1724077594061,3.87252,2582.3,2581.6,3.87348]
[1724077594271,3.87245,2582.4,2581.8,3.87325]
[1724077594544,3.87236,2582.4,2581.8,3.87318]
[1724077594696,1.018873,2582.4,2581.8,3.87318]
[1724077594892,3.87225,2582.5,2581.8,3.87318]
[1724077595114,3.87225,2582.5,2581.9,7.74615]
[1724077595400,6.31624,2582.6,2581.9,3.87304]
[1724077595603,1.018823,2582.5,2581.9,3.87304]
[1724077595800,1.018823,2582.5,2581.8,3.87319]
[1724077596004,6.31624,2582.6,2581.9,3.0]
[1724077596005,2.4441,2582.6,2581.9,3.0]
[1724077596240,2.4441,2582.6,2582.2,3.87265]
[1724077596713,2.4441,2582.6,2582.2,3.87259]
[1724077597231,2.4441,2582.6,2582.0,3.87287]
[1724077597455,2.70094754,2582.6,2582.0,3.87287]
[1724077597748,2.4441,2582.6,2582.0,3.87287]
[1724077597898,2.4441,2582.6,2582.0,7.74575]
[1724077598343,2.4441,2582.6,2582.0,3.87287]
[1724077599054,6.31618,2582.6,2582.0,3.87287]
[1724077599252,3.87223,2582.5,2581.9,3.0]
[1724077599416,3.87223,2582.5,2581.9,6.87304]
[1724077599617,2.4441,2582.6,2582.0,3.87294]
[1724077599816,6.26617,2582.6,2582.0,3.87294]
[1724077600047,2.3941,2582.6,2582.0,8.820489]
[1724077600345,2.3941,2582.6,2582.0,4.947489]
[1724077600715,2.3941,2582.6,2581.9,6.8731]
[1724077600919,6.26619,2582.6,2582.0,3.87293]
[1724077601835,2.3941,2582.6,2582.0,3.87288]
[1724077602035,2.3941,2582.6,2582.1,0.687288]
[1724077602217,2.3941,2582.6,2582.1,4.560028]
[1724077602605,0.1243754,2582.8,2582.2,3.95008289]
[1724077602910,0.1243754,2582.8,2582.3,6.8725]
[1724077603106,0.1243754,2582.8,2582.4,4.95459829]
[1724077603853,0.1243754,2582.8,2582.4,8.82680829]
[1724077604156,0.1243754,2582.8,2582.4,4.95451829]
[1724077604459,0.1243754,2582.8,2582.5,3.87212]
[1724077604605,0.0743754,2582.8,2582.5,3.87212]
[1724077604800,0.0743754,2582.8,2582.6,0.88266183]
[1724077605060,0.0743754,2582.8,2582.4,1.08225829]
[1724077605262,0.0743754,2582.8,2582.4,3.87222]
[1724077605551,0.0743754,2582.8,2582.5,6.87213]
[1724077606455,0.0743754,2582.8,2582.5,3.0]
[1724077606600,0.0743754,2582.8,2582.3,3.87247]
[1724077606804,0.0743754,2582.8,2582.4,3.0]
[1724077607336,0.0743754,2582.8,2582.3,5.9706418]
[1724077607499,0.0743754,2582.8,2582.4,3.0]
[1724077607703,2.3469,2582.7,2582.3,3.0]
[1724077607963,2.3469,2582.7,2582.2,6.87253]
[1724077608256,2.3469,2582.7,2582.2,12.247656]
[1724077608402,6.21882,2582.7,2582.2,4.502546]
[1724077608604,2.3469,2582.7,2582.2,3.0]
[1724077608802,3.9462354,2582.8,2582.2,3.0]
[1724077609053,2.3469,2582.7,2582.2,3.0]
[1724077609209,2.3469,2582.7,2582.2,6.87264]
[1724077609561,3.87221,2582.5,2582.1,7.28]
[1724077609870,3.36338254,2582.7,2582.1,7.28]
[1724077609871,3.87207,2582.6,2582.1,7.28]
[1724077610209,3.36338254,2582.7,2582.1,7.28]
[1724077610437,3.87232,2582.5,2582.1,7.28]
[1724077611054,2.3469,2582.7,2582.1,7.28]
[1724077611265,3.87233,2582.5,2582.1,7.28]
[1724077611464,3.87239,2582.4,2582.1,7.28]
[1724077611679,2.4011,2582.2,2581.8,3.0]
[1724077611978,2.4011,2582.2,2581.6,7.28]
[1724077612123,3.87282,2582.1,2581.6,7.28]
[1724077612323,3.87311,2581.9,2581.6,7.28]
[1724077612521,3.87311,2581.9,2581.3,3.874]
[1724077612522,3.87342,2581.7,2581.2,7.28]
[1724077612749,2.3731,2581.8,2581.1,3.87431]
[1724077612957,2.3731,2581.8,2580.9,9.671]
[1724077613227,6.2464,2581.8,2581.1,3.87418]
[1724077613573,6.2464,2581.8,2581.2,0.774855]
[1724077613727,6.24639,2581.8,2581.2,0.774855]
[1724077613927,3.87343,2581.7,2581.2,0.774855]
[1724077614143,3.87343,2581.7,2581.1,3.0]
[1724077614374,3.87343,2581.7,2581.0,3.87434]
[1724077614375,3.87343,2581.7,2580.9,7.28]
[1724077614539,3.87343,2581.7,2581.1,3.87429]
[1724077614729,3.87343,2581.7,2581.0,3.87432]
[1724077614964,3.87343,2581.7,2581.0,7.7487]
[1724077615167,3.87343,2581.7,2581.0,3.87432]
[1724077615363,2.3731,2581.8,2581.2,3.87407]
[1724077616461,3.87349,2581.7,2581.0,6.87434]
[1724077616661,3.87358,2581.6,2581.0,3.0]
[1724077616913,3.8738,2581.5,2581.0,3.0]
[1724077617069,3.8738,2581.5,2580.9,7.28]
[1724077617070,2.3355,2581.4,2580.9,7.28]
[1724077617406,2.3355,2581.4,2580.9,16.99606]
[1724077617577,2.3355,2581.4,2580.9,13.12151]
[1724077617765,3.87329,2581.8,2581.1,3.87423]
[1724077618496,3.87329,2581.8,2581.1,3.87422]
[1724077618497,3.72329,2581.8,2581.1,3.87422]
[1724077618720,6.35336,2581.9,2581.2,3.95150402]
[1724077618870,6.35331,2581.9,2581.3,0.0774709]
[1724077619069,10.22654,2581.9,2581.3,0.0774709]
[1724077619298,2.4801,2581.9,2581.4,3.87383]
[1724077619506,1.20299602,2582.3,2581.6,3.87345]
[1724077619507,3.0849751,2582.1,2581.6,3.87345]
[1724077619810,2.2815,2582.1,2581.5,3.0]
[1724077619959,6.15433,2582.1,2581.5,3.4648566]
[1724077620167,2.2815,2582.1,2581.5,7.3385566]
[1724077620382,2.2815,2582.1,2581.6,5.30037826]
[1724077620822,0.8034751,2582.2,2581.6,9.17385826]
[1724077621126,5.07550602,2582.3,2581.8,3.87318]
[1724077621127,0.8034751,2582.3,2581.8,3.87318]
[1724077621417,2.4028,2582.4,2581.9,4.560408]
[1724077621633,3.2062751,2582.4,2581.9,4.560408]
[1724077621907,3.2062751,2582.4,2581.9,0.687318]
[1724077621908,4.87298599,2582.3,2581.9,0.687318]
[1724077622111,4.87298599,2582.3,2581.7,3.0]
[1724077622112,1.00046599,2582.2,2581.7,3.0]
[1724077622315,0.8034751,2582.2,2581.6,6.8735]
[1724077622621,3.87297,2582.0,2581.1,15.406523]
[1724077622783,0.8034751,2581.8,2581.3,3.87401]
[1724077622964,0.8034751,2581.8,2581.4,3.87379]
[1724077623159,2.4549,2581.9,2581.5,0.42990658]
[1724077623160,3.2583751,2581.9,2581.5,0.42990658]
[1724077623600,7.1314951,2581.9,2581.3,3.87401]
[1724077623797,0.1972219,2581.8,2581.3,3.87392]
[1724077624114,3.2583751,2581.9,2581.4,3.0]
[1724077624269,0.19723807,2581.8,2581.4,3.0]
[1724077624469,3.2583751,2581.9,2581.4,3.687392]
[1724077624771,0.19722921,2581.8,2581.4,3.687392]
[1724077625000,1.00071602,2581.8,2581.4,3.687392]
[1724077625204,3.2583751,2581.9,2581.4,7.561232]
[1724077625386,0.19725752,2581.8,2581.4,3.687392]
[1724077625593,0.8034751,2581.8,2581.4,3.687392]
[1724077625794,1.00073586,2581.8,2581.3,6.87399]
[1724077626111,3.2583751,2581.9,2581.5,3.87359]
[1724077626413,1.000727,2581.8,2581.3,3.0]
[1724077626568,3.87341,2581.7,2581.3,3.0]
[1724077626772,0.8034751,2581.7,2581.3,3.874]
[1724077626974,0.8034751,2581.7,2581.2,3.0]
[1724077627190,0.8034751,2581.7,2581.2,7.29692198]
[1724077627796,0.8034751,2581.8,2581.3,3.87399]
[1724077628009,0.19717699,2581.7,2581.2,7.29700198]
[1724077628184,1.00065209,2581.7,2581.5,3.87369]
[1724077628510,1.00060419,2581.6,2581.2,3.0]
[1724077628811,0.75905415,2581.6,2581.2,3.0]
[1724077629013,0.95623572,2581.7,2581.3,3.8739]
[1724077629212,0.95623572,2581.7,2581.3,7.74783]
[1724077629213,0.75905415,2581.7,2581.3,7.74783]
[1724077629413,1.20299602,2581.9,2581.4,3.87386]
[1724077629720,1.20299602,2582.0,2581.5,0.616166]
[1724077630011,1.39818813,2582.0,2581.5,4.489846]
[1724077630382,1.39818813,2582.0,2581.6,3.87356]
[1724077630585,0.19519211,2581.9,2581.6,4.7098176]
[1724077630823,1.20299602,2582.1,2581.6,4.7098176]
[1724077631031,1.20299602,2582.1,2581.6,8.5832976]
[1724077631333,3.8838947,2582.2,2581.7,4.79322636]
[1724077631334,3.48289602,2582.2,2581.7,4.79322636]
[1724077631466,0.19516659,2582.1,2581.7,4.79322636]
[1724077631667,0.19517005,2582.0,2581.7,4.79322636]
[1724077631985,3.48289602,2582.2,2581.7,4.79322636]
[1724077632168,0.19518299,2582.1,2581.7,4.79322636]
[1724077632366,1.39817901,2582.1,2581.7,4.79322636]
[1724077632568,1.39817901,2582.1,2581.7,0.91994636]
[1724077632871,4.06822299,2582.0,2581.5,3.0]
[1724077633111,1.39817901,2581.9,2581.5,3.0]
[1724077633294,1.39817901,2581.9,2581.4,7.28]
[1724077633628,5.07648602,2581.7,2581.4,7.28]
[1724077633767,0.19518299,2581.6,2581.4,7.28]
[1724077634082,1.20299602,2581.7,2581.2,3.87414]
[1724077634083,7.57066602,2581.8,2581.2,3.87409]
[1724077634282,1.39840911,2581.7,2581.3,0.387409]
[1724077634618,7.9716647,2581.8,2581.0,6.87435]
[1724077634619,1.39840911,2581.6,2581.0,6.87433]
[1724077634775,0.19541309,2581.5,2581.0,6.87433]
[1724077634970,1.20299602,2581.6,2581.2,3.87415]
[1724077635312,0.19544944,2581.5,2581.3,0.387415]
[1724077635484,1.20299602,2581.7,2581.2,3.87409]
[1724077635692,1.39849432,2581.7,2581.2,3.87405]
[1724077635888,1.39849432,2581.7,2581.3,0.387405]
[1724077636089,0.19547543,2581.6,2581.3,3.87393]
[1724077636294,0.19545284,2581.5,2581.2,3.87416]
[1724077636497,1.20299602,2581.6,2581.2,3.87416]
[1724077636701,1.20299602,2581.6,2581.2,7.74821]
[1724077636883,1.20299602,2581.7,2581.2,4.948881]
[1724077637110,1.3984986,2581.7,2581.2,4.948881]
[1724077637420,0.19550258,2581.6,2581.5,3.87371]
[1724077637626,1.20299602,2581.8,2581.3,2.2887]
[1724077637828,1.20299602,2581.9,2581.7,3.87332]
[1724077638042,1.20299602,2581.9,2581.4,4.2101821]
[1724077638043,1.20299602,2582.1,2581.9,3.87301]
[1724077638329,1.20299602,2582.1,2582.0,0.387301]
[1724077638533,1.20299602,2582.1,2581.9,3.87301]
[1724077638736,1.20299602,2582.1,2581.9,7.74604]
[1724077638885,1.6039947,2582.2,2582.0,3.87296]